[Event "Titled Tuesday Blitz April 4 Late 2023"]
[White "Weisz, Bryan"]
[Black "Barbosa, Evandro Amorim"]
[WhiteFideId "30934133"]
[BlackFideId "2115824"]
[WhiteElo "2359"]
[BlackElo "2439"]
[Result "0-1"]
[Round "04"]
[TimeControl "180+2"]
[Date "2023.04.04"]
[WhiteClock "0:01:30"]
[BlackClock "0:01:56"]

1. e3 {[%clk 0:03:00]}  d5 {[%clk 0:02:59]} 2. c4 {[%clk 0:02:52]}  e6 {[%clk 0:02:59]} 3. Nc3 {[%clk 0:02:49]}  Nf6 {[%clk 0:02:59]} 4. Nf3 {[%clk 0:02:45]}  c6 {[%clk 0:02:59]} 5. d4 {[%clk 0:02:44]}  Nbd7 {[%clk 0:03:00]} 6. Qc2 {[%clk 0:02:43]}  Bd6 {[%clk 0:02:57]} 7. e4 {[%clk 0:02:41]}  dxe4 {[%clk 0:02:56]} 8. Nxe4 {[%clk 0:02:41]}  Nxe4 {[%clk 0:02:56]} 9. Qxe4 {[%clk 0:02:41]}  Bb4+ {[%clk 0:02:57]} 10. Bd2 {[%clk 0:02:38]}  Bxd2+ {[%clk 0:02:56]} 11. Nxd2 {[%clk 0:02:38]}  c5 {[%clk 0:02:55]} 12. O-O-O {[%clk 0:02:17]}  Nf6 {[%clk 0:02:53]} 13. Qh4 {[%clk 0:02:15]}  Qxd4 {[%clk 0:02:51]} 14. Qxd4 {[%clk 0:02:14]}  cxd4 {[%clk 0:02:51]} 15. f3 {[%clk 0:02:13]}  O-O {[%clk 0:02:48]} 16. Bd3 {[%clk 0:02:11]}  Nd7 {[%clk 0:02:41]} 17. f4 {[%clk 0:02:07]}  e5 {[%clk 0:02:37]} 18. fxe5 {[%clk 0:02:05]}  Nxe5 {[%clk 0:02:37]} 19. Be4 {[%clk 0:02:02]}  Be6 {[%clk 0:02:35]} 20. Bxb7 {[%clk 0:01:56]}  Rab8 {[%clk 0:02:34]} 21. Nf3 {[%clk 0:01:53]}  Nxc4 {[%clk 0:02:28]} 22. Ba6 {[%clk 0:01:48]}  Nxb2 {[%clk 0:02:18]} 23. Rxd4 {[%clk 0:01:46]}  Rb6 {[%clk 0:02:18]} 24. Bd3 {[%clk 0:01:38]}  Rc8+ {[%clk 0:02:14]} 25. Kd2 {[%clk 0:01:36]}  Nxd3 {[%clk 0:02:07]} 26. Rxd3 {[%clk 0:01:34]}  Rb2+ {[%clk 0:02:06]} 27. Ke3 {[%clk 0:01:34]}  Rxa2 {[%clk 0:02:03]} 28. g3 {[%clk 0:01:31]}  h6 {[%clk 0:01:59]} 29. Rb1 {[%clk 0:01:30]}  Bf5 {[%clk 0:01:56]} 0-1


[Site "https://www.chess.com"]

[Event "Titled Tuesday Blitz April 4 Late 2023"]
[White "micke12a"]
[Black "Skvortsov, Andrei"]
[BlackFideId "24108600"]
[WhiteElo "2351"]
[BlackElo "2259"]
[Result "0-1"]
[Round "04"]
[TimeControl "180+2"]
[Date "2023.04.04"]
[WhiteClock "0:00:01"]
[BlackClock "0:00:49"]

1. e4 {[%clk 0:03:00]}  c5 {[%clk 0:02:59]} 2. Nc3 {[%clk 0:03:01]}  a6 {[%clk 0:02:58]} 3. Nge2 {[%clk 0:03:00]}  d6 {[%clk 0:02:55]} 4. g3 {[%clk 0:02:57]}  g6 {[%clk 0:02:56]} 5. Bg2 {[%clk 0:02:57]}  Bg7 {[%clk 0:02:56]} 6. O-O {[%clk 0:02:57]}  Nf6 {[%clk 0:02:57]} 7. d3 {[%clk 0:02:56]}  O-O {[%clk 0:02:57]} 8. a4 {[%clk 0:02:57]}  Nc6 {[%clk 0:02:56]} 9. h3 {[%clk 0:02:57]}  Rb8 {[%clk 0:02:56]} 10. f4 {[%clk 0:02:56]}  Nd7 {[%clk 0:02:44]} 11. g4 {[%clk 0:02:51]}  b5 {[%clk 0:02:42]} 12. axb5 {[%clk 0:02:52]}  axb5 {[%clk 0:02:42]} 13. Ng3 {[%clk 0:02:52]}  Nd4 {[%clk 0:02:42]} 14. Be3 {[%clk 0:02:42]}  b4 {[%clk 0:02:39]} 15. Na4 {[%clk 0:02:40]}  Nb3 {[%clk 0:02:32]} 16. cxb3 {[%clk 0:02:37]}  Bb7 {[%clk 0:02:30]} 17. Qe2 {[%clk 0:02:29]}  Bc6 {[%clk 0:02:25]} 18. Rfd1 {[%clk 0:02:27]}  e5 {[%clk 0:02:25]} 19. f5 {[%clk 0:02:24]}  Bb5 {[%clk 0:02:21]} 20. g5 {[%clk 0:02:21]}  f6 {[%clk 0:02:21]} 21. fxg6 {[%clk 0:02:20]}  hxg6 {[%clk 0:02:18]} 22. gxf6 {[%clk 0:02:19]}  Nxf6 {[%clk 0:02:19]} 23. Bg5 {[%clk 0:02:17]}  Qd7 {[%clk 0:02:19]} 24. Bxf6 {[%clk 0:02:12]}  Rxf6 {[%clk 0:02:19]} 25. Qg4 {[%clk 0:02:12]}  Qf7 {[%clk 0:02:17]} 26. Qe2 {[%clk 0:01:39]}  Qxb3 {[%clk 0:02:16]} 27. Nxc5 {[%clk 0:00:51]}  dxc5 {[%clk 0:02:15]} 28. Rac1 {[%clk 0:00:52]}  Qe6 {[%clk 0:02:01]} 29. Kh2 {[%clk 0:00:44]}  Rc8 {[%clk 0:01:54]} 30. Nf1 {[%clk 0:00:38]}  Bh6 {[%clk 0:01:54]} 31. Ne3 {[%clk 0:00:37]}  Bd7 {[%clk 0:01:46]} 32. Rf1 {[%clk 0:00:32]}  Bf4+ {[%clk 0:01:45]} 33. Kh1 {[%clk 0:00:31]}  Rf7 {[%clk 0:01:45]} 34. Rcd1 {[%clk 0:00:27]}  Rh7 {[%clk 0:01:44]} 35. Rf3 {[%clk 0:00:25]}  Rf8 {[%clk 0:01:40]} 36. Nd5 {[%clk 0:00:24]}  Bg5 {[%clk 0:01:37]} 37. Rxf8+ {[%clk 0:00:20]}  Kxf8 {[%clk 0:01:38]} 38. Qf3+ {[%clk 0:00:18]}  Rf7 {[%clk 0:01:38]} 39. Qg3 {[%clk 0:00:18]}  Bh6 {[%clk 0:01:36]} 40. Rf1 {[%clk 0:00:15]}  Rxf1+ {[%clk 0:01:36]} 41. Bxf1 {[%clk 0:00:16]}  Bc6 {[%clk 0:01:35]} 42. Bg2 {[%clk 0:00:16]}  Kg7 {[%clk 0:01:34]} 43. Bf3 {[%clk 0:00:13]}  Qe8 {[%clk 0:01:27]} 44. Kg2 {[%clk 0:00:12]}  Bc1 {[%clk 0:01:22]} 45. b3 {[%clk 0:00:10]}  Bb2 {[%clk 0:01:20]} 46. h4 {[%clk 0:00:09]}  Qf7 {[%clk 0:01:15]} 47. h5 {[%clk 0:00:08]}  Kh6 {[%clk 0:01:15]} 48. hxg6 {[%clk 0:00:08]}  Qxg6 {[%clk 0:01:16]} 49. Qxg6+ {[%clk 0:00:07]}  Kxg6 {[%clk 0:01:17]} 50. Kf2 {[%clk 0:00:05]}  Kg5 {[%clk 0:01:16]} 51. Ke2 {[%clk 0:00:06]}  Be8 {[%clk 0:01:14]} 52. Kd2 {[%clk 0:00:04]}  Bd4 {[%clk 0:01:14]} 53. Kc2 {[%clk 0:00:04]}  Kh4 {[%clk 0:01:13]} 54. Nf6 {[%clk 0:00:03]}  Bf7 {[%clk 0:01:10]} 55. Nd5 {[%clk 0:00:03]}  Kg3 {[%clk 0:01:10]} 56. Bd1 {[%clk 0:00:03]}  Kf2 {[%clk 0:01:09]} 57. Bg4 {[%clk 0:00:03]}  Kg3 {[%clk 0:01:09]} 58. Bd1 {[%clk 0:00:03]}  Be6 {[%clk 0:01:09]} 59. Be2 {[%clk 0:00:03]}  Kf2 {[%clk 0:01:09]} 60. Bd1 {[%clk 0:00:03]}  Bh3 {[%clk 0:01:09]} 61. Bh5 {[%clk 0:00:04]}  Ke1 {[%clk 0:01:07]} 62. Bd1 {[%clk 0:00:03]}  Bg2 {[%clk 0:01:05]} 63. Bg4 {[%clk 0:00:04]}  Bf1 {[%clk 0:01:05]} 64. Be6 {[%clk 0:00:02]}  Ke2 {[%clk 0:01:03]} 65. Kc1 {[%clk 0:00:03]}  Kxd3 {[%clk 0:01:03]} 66. Bf5 {[%clk 0:00:03]}  Ke2 {[%clk 0:01:01]} 67. Kc2 {[%clk 0:00:03]}  Kf3 {[%clk 0:01:01]} 68. Bg6 {[%clk 0:00:04]}  Ba6 {[%clk 0:00:59]} 69. Ne7 {[%clk 0:00:04]}  Bb7 {[%clk 0:00:58]} 70. Nd5 {[%clk 0:00:03]}  Kg4 {[%clk 0:00:58]} 71. Bh7 {[%clk 0:00:02]}  Bc8 {[%clk 0:00:57]} 72. Ne7 {[%clk 0:00:02]}  Be6 {[%clk 0:00:55]} 73. Nc6 {[%clk 0:00:02]}  Kf3 {[%clk 0:00:53]} 74. Nxd4+ {[%clk 0:00:02]}  cxd4 {[%clk 0:00:51]} 75. Bg6 {[%clk 0:00:01]}  Ke3 {[%clk 0:00:51]} 76. Bh7 {[%clk 0:00:01]}  d3+ {[%clk 0:00:48]} 77. Kb2 {[%clk 0:00:01]}  d2 {[%clk 0:00:49]} 0-1


[Site "https://www.chess.com"]

[Event "Titled Tuesday Blitz April 4 Late 2023"]
[White "Jaracz, Pawel"]
[Black "Schuster, Karsten"]
[WhiteFideId "1102222"]
[BlackFideId "4611071"]
[WhiteElo "2438"]
[BlackElo "2294"]
[Result "1-0"]
[Round "04"]
[TimeControl "180+2"]
[Date "2023.04.04"]
[WhiteClock "0:01:48"]
[BlackClock "0:02:29"]

1. d4 {[%clk 0:03:00]}  d5 {[%clk 0:02:58]} 2. Bf4 {[%clk 0:03:00]}  c5 {[%clk 0:02:58]} 3. e3 {[%clk 0:03:00]}  cxd4 {[%clk 0:02:58]} 4. exd4 {[%clk 0:03:00]}  Nc6 {[%clk 0:02:58]} 5. c3 {[%clk 0:02:59]}  Nf6 {[%clk 0:02:59]} 6. h3 {[%clk 0:02:58]}  Bf5 {[%clk 0:02:58]} 7. Nf3 {[%clk 0:02:57]}  e6 {[%clk 0:02:58]} 8. Qb3 {[%clk 0:02:55]}  Qc8 {[%clk 0:02:57]} 9. Ne5 {[%clk 0:02:50]}  Nxe5 {[%clk 0:02:56]} 10. Bxe5 {[%clk 0:02:49]}  Nd7 {[%clk 0:02:55]} 11. Bf4 {[%clk 0:02:47]}  Be7 {[%clk 0:02:52]} 12. Nd2 {[%clk 0:02:47]}  O-O {[%clk 0:02:52]} 13. Be2 {[%clk 0:02:44]}  a6 {[%clk 0:02:49]} 14. a4 {[%clk 0:02:43]}  Qc6 {[%clk 0:02:46]} 15. O-O {[%clk 0:02:39]}  Nf6 {[%clk 0:02:44]} 16. Nf3 {[%clk 0:02:37]}  Ne4 {[%clk 0:02:43]} 17. Ne5 {[%clk 0:02:37]}  Qc8 {[%clk 0:02:43]} 18. f3 {[%clk 0:02:15]}  Bd6 {[%clk 0:02:44]} 19. fxe4 {[%clk 0:02:15]}  Bxe4 {[%clk 0:02:42]} 20. Bf3 {[%clk 0:02:04]}  Bxf3 {[%clk 0:02:40]} 21. Rxf3 {[%clk 0:02:04]}  Qc7 {[%clk 0:02:41]} 22. Raf1 {[%clk 0:02:03]}  f6 {[%clk 0:02:39]} 23. Nd3 {[%clk 0:02:03]}  b5 {[%clk 0:02:34]} 24. axb5 {[%clk 0:02:01]}  axb5 {[%clk 0:02:34]} 25. Bxd6 {[%clk 0:01:57]}  Qxd6 {[%clk 0:02:34]} 26. Qxb5 {[%clk 0:01:56]}  Rab8 {[%clk 0:02:33]} 27. Qc5 {[%clk 0:01:57]}  Qa6 {[%clk 0:02:32]} 28. Nb4 {[%clk 0:01:56]}  Qe2 {[%clk 0:02:31]} 29. R3f2 {[%clk 0:01:55]}  Qe3 {[%clk 0:02:30]} 30. Qd6 {[%clk 0:01:48]}  Rfe8 {[%clk 0:02:29]} 31. Qf4 {[%clk 0:01:48]} 1-0


[Site "https://www.chess.com"]

[Event "Titled Tuesday Blitz April 4 Late 2023"]
[White "Tsvetkov, Andrey"]
[Black "McNeill, Gordon"]
[WhiteFideId "34139360"]
[BlackFideId "30920760"]
[WhiteElo "2319"]
[BlackElo "2103"]
[Result "1-0"]
[Round "04"]
[TimeControl "180+2"]
[Date "2023.04.04"]
[WhiteClock "0:00:12"]
[BlackClock "0:00:09"]

1. d4 {[%clk 0:03:00]}  d6 {[%clk 0:02:59]} 2. c4 {[%clk 0:02:59]}  e5 {[%clk 0:02:59]} 3. Nc3 {[%clk 0:03:00]}  exd4 {[%clk 0:02:57]} 4. Qxd4 {[%clk 0:03:01]}  Nc6 {[%clk 0:02:57]} 5. Qd2 {[%clk 0:03:01]}  g6 {[%clk 0:02:55]} 6. g3 {[%clk 0:03:02]}  Bg7 {[%clk 0:02:54]} 7. Bg2 {[%clk 0:03:02]}  Nge7 {[%clk 0:02:54]} 8. Nh3 {[%clk 0:03:02]}  O-O {[%clk 0:02:41]} 9. Nf4 {[%clk 0:02:53]}  a5 {[%clk 0:02:35]} 10. O-O {[%clk 0:02:50]}  Ne5 {[%clk 0:02:27]} 11. b3 {[%clk 0:02:48]}  a4 {[%clk 0:02:25]} 12. Rb1 {[%clk 0:02:46]}  axb3 {[%clk 0:02:21]} 13. axb3 {[%clk 0:02:47]}  Bf5 {[%clk 0:02:11]} 14. e4 {[%clk 0:02:38]}  Bg4 {[%clk 0:02:03]} 15. f3 {[%clk 0:02:34]}  Bd7 {[%clk 0:02:03]} 16. Nfd5 {[%clk 0:02:29]}  c6 {[%clk 0:01:52]} 17. Nxe7+ {[%clk 0:02:27]}  Qxe7 {[%clk 0:01:52]} 18. Bb2 {[%clk 0:02:26]}  Rfd8 {[%clk 0:01:43]} 19. Rbd1 {[%clk 0:02:26]}  Bc8 {[%clk 0:01:40]} 20. f4 {[%clk 0:02:21]}  Ng4 {[%clk 0:01:38]} 21. h3 {[%clk 0:02:19]}  Nh6 {[%clk 0:01:29]} 22. e5 {[%clk 0:02:15]}  Nf5 {[%clk 0:01:21]} 23. Ne4 {[%clk 0:02:09]}  Ra2 {[%clk 0:01:12]} 24. exd6 {[%clk 0:01:39]}  Nxd6 {[%clk 0:01:05]} 25. Nc3 {[%clk 0:01:01]}  Rxb2 {[%clk 0:00:53]} 26. Qxb2 {[%clk 0:01:02]}  Qe3+ {[%clk 0:00:53]} 27. Qf2 {[%clk 0:01:03]}  Qxc3 {[%clk 0:00:21]} 28. c5 {[%clk 0:01:03]}  Be6 {[%clk 0:00:09]} 29. cxd6 {[%clk 0:00:37]}  c5 {[%clk 0:00:08]} 30. Qf3 {[%clk 0:00:26]}  Bd4+ {[%clk 0:00:07]} 31. Kh2 {[%clk 0:00:27]}  Qb4 {[%clk 0:00:06]} 32. Qxb7 {[%clk 0:00:21]}  Qxb7 {[%clk 0:00:07]} 33. Bxb7 {[%clk 0:00:22]}  Bxb3 {[%clk 0:00:07]} 34. Rb1 {[%clk 0:00:21]}  Be6 {[%clk 0:00:05]} 35. Rb6 {[%clk 0:00:16]}  c4 {[%clk 0:00:05]} 36. Rc6 {[%clk 0:00:17]}  c3 {[%clk 0:00:05]} 37. Rd1 {[%clk 0:00:16]}  Bd5 {[%clk 0:00:04]} 38. Rxd4 {[%clk 0:00:13]}  Bxc6 {[%clk 0:00:05]} 39. Bxc6 {[%clk 0:00:14]}  c2 {[%clk 0:00:05]} 40. Rc4 {[%clk 0:00:15]}  Rxd6 {[%clk 0:00:05]} 41. Rxc2 {[%clk 0:00:15]}  Kg7 {[%clk 0:00:06]} 42. Bg2 {[%clk 0:00:15]}  h5 {[%clk 0:00:06]} 43. Bf3 {[%clk 0:00:15]}  Rd4 {[%clk 0:00:06]} 44. Kg2 {[%clk 0:00:16]}  h4 {[%clk 0:00:07]} 45. Re2 {[%clk 0:00:13]}  hxg3 {[%clk 0:00:07]} 46. Kxg3 {[%clk 0:00:14]}  Rd3 {[%clk 0:00:07]} 47. Kg4 {[%clk 0:00:13]}  Ra3 {[%clk 0:00:08]} 48. h4 {[%clk 0:00:13]}  Ra5 {[%clk 0:00:08]} 49. Re5 {[%clk 0:00:12]}  Kf6 {[%clk 0:00:09]} 50. Rxa5 {[%clk 0:00:12]} 1-0


[Site "https://www.chess.com"]

[Event "Titled Tuesday Blitz April 4 Late 2023"]
[White "Arun, Siddharth"]
[Black "Danielyan, Vahe"]
[WhiteFideId "2079178"]
[BlackFideId "13304828"]
[WhiteElo "2329"]
[BlackElo "2423"]
[Result "1-0"]
[Round "04"]
[TimeControl "180+2"]
[Date "2023.04.04"]
[WhiteClock "0:00:47"]
[BlackClock "0:00:57"]

1. d4 {[%clk 0:03:00]}  Nf6 {[%clk 0:02:53]} 2. Nc3 {[%clk 0:03:00]}  c5 {[%clk 0:02:51]} 3. d5 {[%clk 0:02:58]}  a6 {[%clk 0:02:51]} 4. e4 {[%clk 0:02:58]}  d6 {[%clk 0:02:50]} 5. a4 {[%clk 0:02:58]}  g6 {[%clk 0:02:51]} 6. Nf3 {[%clk 0:02:57]}  Bg7 {[%clk 0:02:51]} 7. g3 {[%clk 0:02:57]}  O-O {[%clk 0:02:51]} 8. Bg2 {[%clk 0:02:58]}  e5 {[%clk 0:02:47]} 9. O-O {[%clk 0:02:56]}  b6 {[%clk 0:02:47]} 10. Ne1 {[%clk 0:02:52]}  Ra7 {[%clk 0:02:47]} 11. f4 {[%clk 0:02:51]}  Re7 {[%clk 0:02:45]} 12. Nd3 {[%clk 0:02:39]}  exf4 {[%clk 0:02:45]} 13. Nxf4 {[%clk 0:02:38]}  Ng4 {[%clk 0:02:41]} 14. Nce2 {[%clk 0:02:29]}  f5 {[%clk 0:02:39]} 15. h3 {[%clk 0:02:22]}  Nf6 {[%clk 0:02:38]} 16. exf5 {[%clk 0:02:15]}  Bxf5 {[%clk 0:02:39]} 17. g4 {[%clk 0:02:10]}  Nxg4 {[%clk 0:02:39]} 18. hxg4 {[%clk 0:02:06]}  Bxg4 {[%clk 0:02:39]} 19. Bf3 {[%clk 0:02:03]}  Qd7 {[%clk 0:02:32]} 20. Ng3 {[%clk 0:02:00]}  Be5 {[%clk 0:02:21]} 21. Bxg4 {[%clk 0:01:55]}  Qe8 {[%clk 0:01:59]} 22. Be6+ {[%clk 0:01:40]}  Kh8 {[%clk 0:01:59]} 23. Be3 {[%clk 0:01:35]}  Nd7 {[%clk 0:01:58]} 24. Qg4 {[%clk 0:01:25]}  Nf6 {[%clk 0:01:57]} 25. Qh3 {[%clk 0:01:23]}  g5 {[%clk 0:01:57]} 26. Nfh5 {[%clk 0:01:20]}  g4 {[%clk 0:01:54]} 27. Qh4 {[%clk 0:01:16]}  Nxh5 {[%clk 0:01:39]} 28. Nxh5 {[%clk 0:01:16]}  g3 {[%clk 0:01:14]} 29. Rxf8+ {[%clk 0:01:14]}  Qxf8 {[%clk 0:01:15]} 30. Rf1 {[%clk 0:01:13]}  Qe8 {[%clk 0:01:13]} 31. Bg5 {[%clk 0:01:11]}  g2 {[%clk 0:01:08]} 32. Bf6+ {[%clk 0:01:07]}  Rg7 {[%clk 0:01:08]} 33. Bxg7+ {[%clk 0:01:07]}  Bxg7 {[%clk 0:01:08]} 34. Rf7 {[%clk 0:00:54]}  Bd4+ {[%clk 0:01:02]} 35. Kxg2 {[%clk 0:00:54]}  Qg8+ {[%clk 0:01:03]} 36. Kh3 {[%clk 0:00:48]}  Qg5 {[%clk 0:00:57]} 37. Qxg5 {[%clk 0:00:47]} 1-0


[Site "https://www.chess.com"]

[Event "Titled Tuesday Blitz April 4 Late 2023"]
[White "Kilpatrick, Callum"]
[Black "Gubajdullin, Alexei"]
[WhiteFideId "414425"]
[BlackFideId "4141202"]
[WhiteElo "2351"]
[BlackElo "2279"]
[Result "0-1"]
[Round "04"]
[TimeControl "180+2"]
[Date "2023.04.04"]
[WhiteClock "0:00:01"]
[BlackClock "0:00:39"]

1. e4 {[%clk 0:03:00]}  e5 {[%clk 0:02:38]} 2. Nf3 {[%clk 0:03:00]}  Nf6 {[%clk 0:02:38]} 3. Nc3 {[%clk 0:02:55]}  Nc6 {[%clk 0:02:37]} 4. d4 {[%clk 0:02:56]}  exd4 {[%clk 0:02:37]} 5. Nxd4 {[%clk 0:02:57]}  Bb4 {[%clk 0:02:37]} 6. Nxc6 {[%clk 0:02:57]}  bxc6 {[%clk 0:02:38]} 7. Bd3 {[%clk 0:02:58]}  O-O {[%clk 0:02:38]} 8. O-O {[%clk 0:02:58]}  d5 {[%clk 0:02:37]} 9. exd5 {[%clk 0:02:57]}  cxd5 {[%clk 0:02:37]} 10. h3 {[%clk 0:02:57]}  c6 {[%clk 0:02:37]} 11. Qf3 {[%clk 0:02:57]}  h6 {[%clk 0:02:36]} 12. Ne2 {[%clk 0:02:42]}  Bd6 {[%clk 0:02:33]} 13. Ng3 {[%clk 0:02:33]}  Re8 {[%clk 0:02:30]} 14. Bd2 {[%clk 0:02:12]}  Be5 {[%clk 0:02:26]} 15. c3 {[%clk 0:01:59]}  Rb8 {[%clk 0:02:26]} 16. Rab1 {[%clk 0:01:58]}  Qc7 {[%clk 0:02:11]} 17. Rfe1 {[%clk 0:01:57]}  Bxg3 {[%clk 0:02:02]} 18. Rxe8+ {[%clk 0:01:57]}  Nxe8 {[%clk 0:02:02]} 19. fxg3 {[%clk 0:01:57]}  Be6 {[%clk 0:01:56]} 20. Kh2 {[%clk 0:01:50]}  Qa5 {[%clk 0:01:56]} 21. a3 {[%clk 0:01:40]}  c5 {[%clk 0:01:54]} 22. Bc2 {[%clk 0:01:37]}  c4 {[%clk 0:01:51]} 23. Bf4 {[%clk 0:01:28]}  Rb6 {[%clk 0:01:46]} 24. Be3 {[%clk 0:01:26]}  Rb7 {[%clk 0:01:45]} 25. Bd4 {[%clk 0:01:20]}  Nd6 {[%clk 0:01:40]} 26. Qf4 {[%clk 0:01:17]}  Nb5 {[%clk 0:01:26]} 27. Bc5 {[%clk 0:01:05]}  Qc7 {[%clk 0:01:24]} 28. Be3 {[%clk 0:00:38]}  Qxf4 {[%clk 0:01:22]} 29. gxf4 {[%clk 0:00:39]}  Nd6 {[%clk 0:01:21]} 30. g4 {[%clk 0:00:38]}  f5 {[%clk 0:01:12]} 31. Bd4 {[%clk 0:00:30]}  fxg4 {[%clk 0:01:08]} 32. hxg4 {[%clk 0:00:26]}  Bxg4 {[%clk 0:01:07]} 33. b4 {[%clk 0:00:17]}  Bf5 {[%clk 0:01:05]} 34. Rc1 {[%clk 0:00:10]}  Bxc2 {[%clk 0:01:04]} 35. Rxc2 {[%clk 0:00:11]}  Nb5 {[%clk 0:01:04]} 36. Be5 {[%clk 0:00:04]}  Nxa3 {[%clk 0:01:04]} 37. Rd2 {[%clk 0:00:04]}  Rd7 {[%clk 0:01:02]} 38. Kg2 {[%clk 0:00:05]}  Nb5 {[%clk 0:01:01]} 39. Kf3 {[%clk 0:00:05]}  g6 {[%clk 0:01:00]} 40. Rh2 {[%clk 0:00:04]}  h5 {[%clk 0:01:00]} 41. Kg3 {[%clk 0:00:05]}  Kf7 {[%clk 0:01:00]} 42. Kh4 {[%clk 0:00:05]}  d4 {[%clk 0:00:59]} 43. cxd4 {[%clk 0:00:04]}  Nxd4 {[%clk 0:00:59]} 44. Ra2 {[%clk 0:00:01]}  Nf5+ {[%clk 0:00:55]} 45. Kg5 {[%clk 0:00:01]}  Ng3 {[%clk 0:00:48]} 46. Ra6 {[%clk 0:00:01]}  h4 {[%clk 0:00:39]} 0-1


[Site "https://www.chess.com"]

[Event "Titled Tuesday Blitz April 4 Late 2023"]
[White "Aggelis, Nikolaos"]
[Black "Domingo Nunez, Ruben"]
[WhiteFideId "4213220"]
[BlackFideId "22245570"]
[WhiteElo "2189"]
[BlackElo "2404"]
[Result "1/2-1/2"]
[Round "04"]
[TimeControl "180+2"]
[Date "2023.04.04"]
[WhiteClock "0:00:12"]
[BlackClock "0:00:07"]

1. c4 {[%clk 0:03:00]}  g6 {[%clk 0:02:59]} 2. b3 {[%clk 0:02:51]}  Bg7 {[%clk 0:03:00]} 3. Nc3 {[%clk 0:02:52]}  c5 {[%clk 0:02:59]} 4. Bb2 {[%clk 0:02:52]}  Nc6 {[%clk 0:03:00]} 5. Nf3 {[%clk 0:02:51]}  d6 {[%clk 0:03:00]} 6. g3 {[%clk 0:02:50]}  Nf6 {[%clk 0:03:00]} 7. Bg2 {[%clk 0:02:50]}  O-O {[%clk 0:03:01]} 8. O-O {[%clk 0:02:50]}  Rb8 {[%clk 0:03:01]} 9. d4 {[%clk 0:02:50]}  cxd4 {[%clk 0:02:57]} 10. Nxd4 {[%clk 0:02:51]}  Bd7 {[%clk 0:02:58]} 11. Rc1 {[%clk 0:02:45]}  a6 {[%clk 0:02:58]} 12. Qd2 {[%clk 0:02:38]}  Nxd4 {[%clk 0:02:55]} 13. Qxd4 {[%clk 0:02:37]}  b5 {[%clk 0:02:56]} 14. cxb5 {[%clk 0:02:34]}  axb5 {[%clk 0:02:55]} 15. Nd5 {[%clk 0:02:34]}  Be6 {[%clk 0:02:48]} 16. Nf4 {[%clk 0:02:24]}  Bg4 {[%clk 0:02:45]} 17. h3 {[%clk 0:02:21]}  e5 {[%clk 0:02:37]} 18. Qd3 {[%clk 0:02:15]}  Bf5 {[%clk 0:02:28]} 19. e4 {[%clk 0:02:15]}  Bxe4 {[%clk 0:02:24]} 20. Bxe4 {[%clk 0:02:15]}  exf4 {[%clk 0:02:25]} 21. Bc6 {[%clk 0:01:50]}  Qa5 {[%clk 0:02:12]} 22. Qxd6 {[%clk 0:01:37]}  Rfd8 {[%clk 0:02:09]} 23. Qa3 {[%clk 0:00:50]}  Qd2 {[%clk 0:01:25]} 24. Bc3 {[%clk 0:00:43]}  Qd3 {[%clk 0:01:20]} 25. Qb2 {[%clk 0:00:41]}  Nh5 {[%clk 0:01:15]} 26. Bxg7 {[%clk 0:00:40]}  Nxg7 {[%clk 0:01:16]} 27. Rc3 {[%clk 0:00:37]}  Qd4 {[%clk 0:01:12]} 28. Rc2 {[%clk 0:00:34]}  Qb6 {[%clk 0:01:07]} 29. g4 {[%clk 0:00:32]}  Ne6 {[%clk 0:01:06]} 30. Be4 {[%clk 0:00:22]}  Nd4 {[%clk 0:00:58]} 31. Rd2 {[%clk 0:00:22]}  Rd7 {[%clk 0:00:42]} 32. Kh1 {[%clk 0:00:22]}  Rbd8 {[%clk 0:00:42]} 33. Rfd1 {[%clk 0:00:22]}  Qf6 {[%clk 0:00:35]} 34. Qc3 {[%clk 0:00:20]}  Kg7 {[%clk 0:00:26]} 35. a4 {[%clk 0:00:20]}  bxa4 {[%clk 0:00:23]} 36. bxa4 {[%clk 0:00:21]}  h5 {[%clk 0:00:19]} 37. g5 {[%clk 0:00:16]}  Qe5 {[%clk 0:00:19]} 38. f3 {[%clk 0:00:16]}  Rc7 {[%clk 0:00:17]} 39. Qb2 {[%clk 0:00:15]}  Rcd7 {[%clk 0:00:13]} 40. a5 {[%clk 0:00:15]}  Nxf3 {[%clk 0:00:03]} 41. Qxe5+ {[%clk 0:00:15]}  Nxe5 {[%clk 0:00:04]} 42. Rxd7 {[%clk 0:00:15]}  Rxd7 {[%clk 0:00:05]} 43. Rxd7 {[%clk 0:00:15]}  Nxd7 {[%clk 0:00:06]} 44. a6 {[%clk 0:00:15]}  Nb6 {[%clk 0:00:06]} 45. a7 {[%clk 0:00:15]}  f6 {[%clk 0:00:07]} 46. h4 {[%clk 0:00:15]}  Kf7 {[%clk 0:00:06]} 47. a8=Q {[%clk 0:00:15]}  Nxa8 {[%clk 0:00:07]} 48. Bxa8 {[%clk 0:00:16]}  fxg5 {[%clk 0:00:04]} 49. hxg5 {[%clk 0:00:17]}  Ke6 {[%clk 0:00:04]} 50. Be4 {[%clk 0:00:18]}  f3 {[%clk 0:00:04]} 51. Kh2 {[%clk 0:00:17]}  Ke5 {[%clk 0:00:05]} 52. Bxg6 {[%clk 0:00:15]}  Kf4 {[%clk 0:00:05]} 53. Bxh5 {[%clk 0:00:14]}  f2 {[%clk 0:00:06]} 54. Kg2 {[%clk 0:00:14]}  Kxg5 {[%clk 0:00:07]} 55. Kxf2 {[%clk 0:00:12]} 1/2-1/2


[Site "https://www.chess.com"]

[Event "Titled Tuesday Blitz April 4 Late 2023"]
[White "Erzhanov, Arman"]
[Black "Popov, Mikhail"]
[WhiteFideId "4138821"]
[BlackFideId "4146182"]
[WhiteElo "2138"]
[BlackElo "2244"]
[Result "1-0"]
[Round "04"]
[TimeControl "180+2"]
[Date "2023.04.04"]
[WhiteClock "0:00:15"]
[BlackClock "0:00:01"]

1. e4 {[%clk 0:02:58]}  e6 {[%clk 0:03:00]} 2. b3 {[%clk 0:02:55]}  d5 {[%clk 0:03:00]} 3. Bb2 {[%clk 0:02:56]}  dxe4 {[%clk 0:03:00]} 4. Nc3 {[%clk 0:02:56]}  Nf6 {[%clk 0:03:00]} 5. Qe2 {[%clk 0:02:56]}  Nbd7 {[%clk 0:02:34]} 6. O-O-O {[%clk 0:02:56]}  Be7 {[%clk 0:02:32]} 7. g4 {[%clk 0:02:55]}  Nc5 {[%clk 0:02:27]} 8. g5 {[%clk 0:02:49]}  Nd5 {[%clk 0:02:24]} 9. Nxe4 {[%clk 0:02:47]}  O-O {[%clk 0:02:16]} 10. h4 {[%clk 0:02:38]}  Nf4 {[%clk 0:02:02]} 11. Qf3 {[%clk 0:02:36]}  Nxe4 {[%clk 0:01:56]} 12. Qxf4 {[%clk 0:02:25]}  f5 {[%clk 0:01:34]} 13. gxf6 {[%clk 0:02:18]}  Nxf6 {[%clk 0:01:35]} 14. Bd3 {[%clk 0:02:08]}  Qd6 {[%clk 0:01:24]} 15. Qg5 {[%clk 0:01:56]}  Qd5 {[%clk 0:01:17]} 16. Nh3 {[%clk 0:01:45]}  a5 {[%clk 0:01:01]} 17. a4 {[%clk 0:01:42]}  h6 {[%clk 0:00:44]} 18. Qg6 {[%clk 0:01:35]}  Qh5 {[%clk 0:00:45]} 19. Nf4 {[%clk 0:01:28]}  Qxg6 {[%clk 0:00:42]} 20. Nxg6 {[%clk 0:01:28]}  Re8 {[%clk 0:00:42]} 21. Rhg1 {[%clk 0:01:27]}  Bd8 {[%clk 0:00:30]} 22. Rg2 {[%clk 0:01:12]}  Nh5 {[%clk 0:00:24]} 23. Be2 {[%clk 0:00:58]}  Nf6 {[%clk 0:00:20]} 24. Rdg1 {[%clk 0:00:59]}  e5 {[%clk 0:00:18]} 25. Nxe5 {[%clk 0:00:58]}  Re7 {[%clk 0:00:18]} 26. Bc4+ {[%clk 0:00:57]}  Be6 {[%clk 0:00:16]} 27. Bxe6+ {[%clk 0:00:54]}  Rxe6 {[%clk 0:00:17]} 28. Rxg7+ {[%clk 0:00:54]}  Kf8 {[%clk 0:00:18]} 29. Ba3+ {[%clk 0:00:27]}  Rd6 {[%clk 0:00:15]} 30. Bxd6+ {[%clk 0:00:20]}  cxd6 {[%clk 0:00:15]} 31. Nd7+ {[%clk 0:00:19]}  Nxd7 {[%clk 0:00:14]} 32. Rxd7 {[%clk 0:00:20]}  Bxh4 {[%clk 0:00:12]} 33. Rh7 {[%clk 0:00:18]}  Bf6 {[%clk 0:00:12]} 34. Rxh6 {[%clk 0:00:17]}  Be5 {[%clk 0:00:12]} 35. Rh7 {[%clk 0:00:16]}  Rc8 {[%clk 0:00:09]} 36. f4 {[%clk 0:00:16]}  Bf6 {[%clk 0:00:08]} 37. Rg6 {[%clk 0:00:15]}  Bd4 {[%clk 0:00:05]} 38. Rxd6 {[%clk 0:00:14]}  Bg7 {[%clk 0:00:03]} 39. Rd7 {[%clk 0:00:14]}  Bf6 {[%clk 0:00:03]} 40. Rdf7+ {[%clk 0:00:14]}  Kg8 {[%clk 0:00:01]} 41. Rxb7 {[%clk 0:00:15]} 1-0


[Site "https://www.chess.com"]